Cogmind - Beta 16 @@@ ROGUE MODE // 2025.11.14 @ 05:54:09 // AFD2019/Pay2Buy Player: GFYguy Result: Self-destructed Performance ------------- Evolutions (3) 1500 Regions Visited (5) 1000 Robots Destroyed (0) 0 Value Destroyed (440) 440 Prototype IDs (2) 40 Alien Tech Used (0) 0 Bonus (676) 676 TOTAL SCORE: 3656 Bonus ------- Pacifist 470 Follower Combat Kills 206 Cogmind --------- Core Integrity 639/700 Matter 300/300 Energy 12/125 System Corruption 0% Temperature Cool (0) Movement Flying (23) Location -7/Factory Parts ------- > --- POWER (1) -------- Light Ion Engine > --- PROPULSION (6) --- VTOL Module Cesium-ion Thruster Cesium-ion Thruster Cesium-ion Thruster Cesium-ion Thruster > --- UTILITY (4) ------ ECM Suite Improved Reaction Control System > --- WEAPON (2) ------- Improved Datajack > --- INVENTORY (10) --- Improved Arc Projector Peak State ------------ > --- POWER ------------ Light Ion Engine > --- PROPULSION ------- VTOL Module Cesium-ion Thruster Cesium-ion Thruster Cesium-ion Thruster Cesium-ion Thruster > --- UTILITY ---------- ECM Suite Improved Reaction Control System > --- WEAPON ----------- Improved Datajack Plasma Cutter > --- INVENTORY -------- Improved Arc Projector [Rating: 26] Favorites ----------- Power Light Ion Engine Engine Light Ion Engine Propulsion Cesium-ion Thruster Flight Unit Cesium-ion Thruster Utility ECM Suite Device ECM Suite Weapon Plasma Cutter Special Weapon Plasma Cutter Special Melee Weapon Improved Datajack Build | -11 -10 -9 -9 -9 -7 ------- Run | Yrd Mat Mat Sto Rec Fac Slots Evolved 6 | . . 2 . . 4 Power . | . . . . . . Propulsion 4 | . . 2 . . 2 Utility 2 | . . . . . 2 Weapon . | . . . . . . Parts Attached 2 | . . . 1 . 1 Power . | . . . . . . Engine . | . . . . . . Core . | . . . . . . Reactor . | . . . . . . Propulsion 1 | . . . . . 1 Treads . | . . . . . . Leg . | . . . . . . Wheel . | . . . . . . Hover . | . . . . . . Flight 1 | . . . . . 1 Utility 1 | . . . 1 . . Device 1 | . . . 1 . . Storage . | . . . . . . Processor . | . . . . . . Hackware . | . . . . . . Protection . | . . . . . . Artifact . | . . . . . . Weapon . | . . . . . . Energy Gun . | . . . . . . Energy Cannon . | . . . . . . Ballistic Gun . | . . . . . . Ballistic Cannon . | . . . . . . Launcher . | . . . . . . Special Weapon . | . . . . . . Impact Weapon . | . . . . . . Slashing Weapon . | . . . . . . Piercing Weapon . | . . . . . . Special Melee Weapon . | . . . . . . Unidentified Prototypes . | . . . . . . Parts Lost 4 | . . 1 2 . 1 Power . | . . . . . . Propulsion 1 | . . . 1 . . Utility 1 | . . . 1 . . Weapon 2 | . . 1 . . 1 Highest Loss Streak 3 | . . 1 3 . 1 To Critical Strikes . | . . . . . . Average Backups . | . . . . 1 1 Power . | . . . . . . Propulsion . | . . . . 1 . Utility . | . . . . . . Weapon . | . . . . . . Tool/Special . | . . . . . . Unused Backups 1 | . . . . . 1 Power . | . . . . . . Propulsion . | . . . . . . Utility . | . . . . . . Weapon 1 | . . . . . 1 Tool/Special . | . . . . . . Average Slot Usage (%) 58 | . 69 55 49 64 57 Engine 9 | . 12 11 11 11 7 Flight 21 | . 28 22 18 22 20 Device 12 | . 14 11 9 11 14 Special Weapon 9 | . 14 11 11 11 6 Special Melee Weapon 4 | . . . . 9 7 Peak Build Rating 26 | 7 8 11 12 13 26 Average Rating 13 | 7 7 8 8 12 19 On Entrance 7 | . 7 8 9 10 13 Avg Prop Armor Cover (%) . | . . . . . . Naked Turns . | . . . . . . Heaviest Build 9 | 3 6 7 7 7 9 Greatest Support 24 | 8 8 8 10 10 24 Greatest Overweight (x) . | . . . . . . Average Overweight (x) . | . . . . . . Largest Inventory Capacity 10 | 10 10 10 10 10 10 Average Capacity 10 | 10 10 10 10 10 10 Most Carried 1 | . . . 1 1 1 Average Carried . | . . . . 1 1 Final Capacity 10 | 10 10 10 10 10 10 Final Carried 1 | . . . 1 1 1 Class Distribution -------------------- 55% | Commander-Sprinter 37% | Sprinter 6% | Commander-Mutant Dominant Class ---------------- Sprinter | -10/Materials Sprinter | -9/Materials Commander-Sprinter | -9/Storage Commander-Sprinter | -9/Recycling Commander-Sprinter | -7/Factory Resources | -11 -10 -9 -9 -9 -7 ----------- Run | Yrd Mat Mat Sto Rec Fac Matter Collected 205 | . . . 104 . 101 Remotely . | . . . . . . Salvage Created . | . . . . . . Parts . | . . . . . . Haulers Intercepted . | . . . . . . Recyclers Shooed . | . . . . . . Parts Field Recycled . | . . . . . . Retrieved Matter . | . . . . . . Parts Self-Destructed . | . . . . . . Prevented . | . . . . . . Parts Restored . | . . . . . . Kills | -11 -10 -9 -9 -9 -7 ------- Run | Yrd Mat Mat Sto Rec Fac Combat Hostiles Destroyed . | . . . . . . Classes Destroyed . | . . . . . . Best Kill Streak . | . . . . . . Combat Bots Only . | . . . . . . Max Kills in Single Turn . | . . . . . . Gunslinging . | . . . . . . Exploded . | . . . . . . Melee . | . . . . . . Uniques/NPCs Destroyed . | . . . . . . Combat | -11 -10 -9 -9 -9 -7 -------- Run | Yrd Mat Mat Sto Rec Fac Hostile Shots Fired 41 | . 8 12 . 4 17 Missed 26 | . 6 9 . 1 10 Hits 15 | . 2 3 . 3 7 Projectile 15 | . 2 3 . 3 7 Critical Strikes 1 | . . . . . 1 Damage Taken 251 | . 18 41 42 44 106 Core 81 | . . . 8 12 61 Absorbed by Shields . | . . . . . . Core Remaining (%) 98 | 100 100 . . 95 . Volleys Fired 8 | . 5 . 2 1 . Largest 1 | . 1 . 1 1 . Hottest 20 | . 20 . 20 20 . Shots Fired 8 | . 5 . 2 1 . Gun . | . . . . . . Cannon . | . . . . . . Launcher . | . . . . . . Special 8 | . 5 . 2 1 . Kinetic . | . . . . . . Thermal 8 | . 5 . 2 1 . Explosive . | . . . . . . Electromagnetic . | . . . . . . Robot Hit Streak 1 | . 1 . . 1 . Robot Miss Streak 5 | . 3 . 5 . . Penetration Max . | . . . . . . Secondary Targets . | . . . . . . Shots Hit Robots 7 | . 1 . . 6 . Core Hits 1 | . 1 . . . . Critical Kills . | . . . . . . Critical Parts Destroyed . | . . . . . . Critical Strikes . | . . . . . . Melee Attacks 5 | . . . . 5 . Impact . | . . . . . . Slashing . | . . . . . . Piercing . | . . . . . . Sneak Attacks 5 | . . . . 5 . Combat Hostiles . | . . . . . . Follow-up Attacks . | . . . . . . Damage Inflicted 21 | . 11 . . 10 . Guns . | . . . . . . Cannons . | . . . . . . Explosions . | . . . . . . Melee . | . . . . . . Ramming . | . . . . . . Kinetic . | . . . . . . Thermal 21 | . 11 . . 10 . Explosive . | . . . . . . Electromagnetic . | . . . . . . Impact . | . . . . . . Slashing . | . . . . . . Piercing . | . . . . . . Highest Corruption . | . . . . . . Average Corruption . | . . . . . . Corruption Purged . | . . . . . . Corruption Blocked . | . . . . . . Overload Shots . | . . . . . . Overflow Damage . | . . . . . . Projectiles . | . . . . . . Explosions . | . . . . . . Melee . | . . . . . . Knockbacks . | . . . . . . Impact . | . . . . . . Kinetic . | . . . . . . Secondary . | . . . . . . Self-Inflicted Damage . | . . . . . . Shots . | . . . . . . Rammed . | . . . . . . Targets Rammed . | . . . . . . Kicked . | . . . . . . Crushed . | . . . . . . Highest Temperature 6 | . . . . . 6 Average Temperature 1 | . . . . . 1 Received Heat Transfer 27 | . 6 12 . 9 . Siege Activations . | . . . . . . Martial Activations . | . . . . . . Shielding Activations . | . . . . . . Robots Disrupted . | . . . . . . Combat Hostiles . | . . . . . . Robots Corrupted . | . . . . . . Combat Hostiles . | . . . . . . Parts Fried . | . . . . . . Impact Corruptions . | . . . . . . Robots Melted . | . . . . . . Combat Hostiles . | . . . . . . Parts Melted . | . . . . . . Heat Transferred 74 | . 37 . . 37 . Parts Sabotaged . | . . . . . . Parts Stolen . | . . . . . . Parts Stripped . | . . . . . . Power Chain Reactions . | . . . . . . Alert | -11 -10 -9 -9 -9 -7 ------- Run | Yrd Mat Mat Sto Rec Fac Maximum Alert Level . | . . . . . . Low Security (%) 100 | 100 100 100 100 100 100 Level 1 . | . . . . . . Level 2 . | . . . . . . Level 3 . | . . . . . . Level 4 . | . . . . . . Level 5 . | . . . . . . High Security . | . . . . . . Max Security . | . . . . . . Peak Influence 162 | . 75 101 162 78 87 Initial 58 | . . 27 33 58 15 Average 54 | . 35 65 105 58 34 Influence Increases 1011 | . 135 134 249 80 413 Destroy 0b10 Robot/C 140 | . . . 40 20 80 Destroy Leader 40 | . . . 20 . 20 Allied During Kill 43 | . . . 30 . 13 Successful Hack 23 | . . 14 9 . . Disable Machine 660 | . 105 105 135 60 255 Partial Spotted 75 | . 30 15 15 . 15 Lose Combat Pursuer 30 | . . . . . 30 Influence Decreases 934 | . 70 118 178 194 374 Entered New Map 203 | . . 38 48 94 23 Time Decay 569 | . 70 70 110 80 239 Lost Part 40 | . . 10 20 . 10 Lost Ally 122 | . . . . 20 102 Squads Dispatched 5 | . . . 1 . 4 Investigation 1 | . . . . . 1 Extermination 1 | . . . . . 1 Reinforcement 3 | . . . 1 . 2 Assault . | . . . . . . Garrison . | . . . . . . Intercept . | . . . . . . Searches Triggered . | . . . . . . Construction Impeded . | . . . . . . Haulers Reinforced . | . . . . . . Active Scanning Responses . | . . . . . . Cargo Convoy Interrupts . | . . . . . . Stealth | -11 -10 -9 -9 -9 -7 --------- Run | Yrd Mat Mat Sto Rec Fac Distress Signals 3 | . 3 . . . . Communications Jammed . | . . . . . . Distress Signals . | . . . . . . Times Spotted 27 | . 12 6 2 1 6 Peak Tracking Total 7 | . 7 5 1 1 3 Tactical Retreats 3 | . 2 . . . 1 ECM-based Alert Blocks 4 | . 4 . . . . Traps | -11 -10 -9 -9 -9 -7 ------- Run | Yrd Mat Mat Sto Rec Fac Traps Triggered 3 | . . . 1 . 2 Indirectly . | . . . . . . Trap Hack Attempts . | . . . . . . Triggered . | . . . . . . Disarmed . | . . . . . . Reprogrammed . | . . . . . . Reused . | . . . . . . Traps Extracted . | . . . . . . Installed . | . . . . . . Triggered . | . . . . . . Machines | -11 -10 -9 -9 -9 -7 ---------- Run | Yrd Mat Mat Sto Rec Fac Machines Disabled 44 | . 7 7 9 4 17 Max in Single Turn 1 | . 1 1 1 1 1 Machines Repaired . | . . . . . . Machines Dismantled 44 | . 7 7 9 4 17 Machines Sabotaged . | . . . . . . Overloaded Fab Kills . | . . . . . . Hacking | -11 -10 -9 -9 -9 -7 --------- Run | Yrd Mat Mat Sto Rec Fac Machines Accessed 4 | . 1 1 2 . . Terminals 4 | . 1 1 2 . . Fabricators . | . . . . . . Repair Stations . | . . . . . . Recycling Units . | . . . . . . Scanalyzers . | . . . . . . Garrison Access . | . . . . . . Total Hacks 9 | . 1 2 6 . . Successful 7 | . 1 1 5 . . Failed 2 | . . 1 1 . . Catastrophic . | . . . . . . Database Lockouts . | . . . . . . Manual . | . . . . . . Terminals 9 | . 1 2 6 . . Fabricators . | . . . . . . Repair Stations . | . . . . . . Recycling Units . | . . . . . . Scanalyzers . | . . . . . . Garrison Access . | . . . . . . Terminal Hacks 7 | . 1 1 5 . . Part Schematic 1 | . . . 1 . . Prototype ID Bank 1 | . . . 1 . . Open Door 1 | . . . 1 . . Emergency Access Points 1 | . . 1 . . . Alert Level 2 | . 1 . 1 . . Recall Investigation 1 | . . . 1 . . Fabricator Hacks . | . . . . . . Repair Station Hacks . | . . . . . . Recycling Unit Hacks . | . . . . . . Scanalyzer . | . . . . . . Garrison Access Hacks . | . . . . . . Unauthorized Hacks . | . . . . . . Terminals . | . . . . . . Fabricators . | . . . . . . Repair Stations . | . . . . . . Recycling Units . | . . . . . . Scanalyzers . | . . . . . . Garrison Access . | . . . . . . Data Cores Recovered . | . . . . . . Used . | . . . . . . Hacking Detections 2 | . . 1 1 . . Full Trace Events . | . . . . . . Feedback Events . | . . . . . . Feedback Blocked . | . . . . . . Robot Schematics Acquired . | . . . . . . Robots Built . | . . . . . . Authchips . | . . . . . . Time . | . . . . . . Total Robot Build Rating . | . . . . . . Part Schematics Acquired 1 | . . . 1 . . Parts Built . | . . . . . . Authchips . | . . . . . . Time . | . . . . . . Total Part Build Rating . | . . . . . . Part Studies Acquired . | . . . . . . Parts Repaired . | . . . . . . Time . | . . . . . . Parts Recycled . | . . . . . . Recycled Matter . | . . . . . . Retrieved Matter . | . . . . . . Retrieved Components . | . . . . . . Parts Scanalyzed . | . . . . . . Part Schematics Acquired . | . . . . . . Parts Damaged . | . . . . . . Bothacking | -11 -10 -9 -9 -9 -7 ------------ Run | Yrd Mat Mat Sto Rec Fac Used RIF Installer . | . . . . . . Robots Hacked . | . . . . . . Non-combat . | . . . . . . Combat . | . . . . . . Robot Hacks Applied . | . . . . . . Relay Couplers Released . | . . . . . . Fabnet Peak Effective % . | . . . . . . Robots Rewired . | . . . . . . Allies Hacked . | . . . . . . Hacks Repelled . | . . . . . . Allies | -11 -10 -9 -9 -9 -7 -------- Run | Yrd Mat Mat Sto Rec Fac Total Allies 10 | . . . 10 . . Largest Group 10 | . . . 10 10 9 Highest-Rated Group 88 | . . . 88 88 80 Highest-Rated Ally 16 | . . . 16 16 16 Total Orders . | . . . . . . Ally Attacks 49 | . . . 13 4 32 Total Damage 396 | . . . 106 33 257 Kills 7 | . . . 2 1 4 Allies Corrupted . | . . . . . . Allies Melted . | . . . . . . Intel | -11 -10 -9 -9 -9 -7 ------- Run | Yrd Mat Mat Sto Rec Fac Active Infowar (turns) 1119 | 6 153 144 153 161 502 ECM 1119 | 6 153 144 153 161 502 Robot Analysis Total . | . . . . . . Derelict Logs Recovered . | . . . . . . Drone Launches . | . . . . . . Drone Recoveries . | . . . . . . Exploration | -11 -10 -9 -9 -9 -7 ------------- Run | Yrd Mat Mat Sto Rec Fac Turns Passed 1250 | 6 153 144 234 161 552 Spaces Moved 1293 | 18 206 160 194 139 576 Core . | . . . . . . Treads . | . . . . . . Legs . | . . . . . . Wheels . | . . . . . . Hover . | . . . . . . Flight 1293 | 18 206 160 194 139 576 Fastest Speed 23 | 32 32 32 32 32 23 Average Speed 30 | 32 32 32 33 32 28 Slowest Speed 35 | 32 32 32 35 32 32 Overloaded Moves . | . . . . . . Propulsion Burnouts . | . . . . . . Robots Hopped 6 | . 1 1 . 1 3 Potential Cave-ins . | . . . . . . Cave-ins Triggered . | . . . . . . Exploration Rate (%) 23 | 4 37 18 29 43 12 Regions Visited 5 Branch Regions 2 Pre-discovered Areas . | . . . . . . Known Exits Taken . | . . . . . . Unknown Exits Taken 5 | 1 1 1 1 1 . Scrap Searched . | . . . . . . Spaces Dug . | . . . . . . Terrain Destroyed . | . . . . . . Melee . | . . . . . . Projectile . | . . . . . . AOE . | . . . . . . Terrain Rammed . | . . . . . . Walls Destroyed . | . . . . . . Machines Disabled . | . . . . . . Actions | -11 -10 -9 -9 -9 -7 --------- Run | Yrd Mat Mat Sto Rec Fac Total 1697 | 17 233 189 278 217 763 Wait 166 | . . . 39 57 70 Move 1275 | 17 203 157 193 136 569 Hop 6 | . 1 1 . 1 3 Pick Up . | . . . . . . Fast Attach . | . . . . . . Attach 2 | . . . 1 . 1 Detach 2 | . . . 2 . . Swap . | . . . . . . Drop . | . . . . . . Fire 8 | . 5 . 2 1 . Melee 5 | . . . . 5 . Ram . | . . . . . . Kick . | . . . . . . Crush . | . . . . . . Escape Stasis 21 | . . . . . 21 Rewire . | . . . . . . Trap . | . . . . . . Miscellaneous 212 | . 24 31 41 17 99 Route ------- -11/Scrapyard -10/Materials -9/Materials -9/Storage -9/Recycling -7/Factory History --------- Turn | Location | Event 3 | -11/Scrapyard | Discovered new exit (range 12) 7 | -11/Scrapyard | Entered Materials 83 | -10/Materials | Discovered new exit (range 3) 160 | -10/Materials | Entered another Materials area 160 | -9/Materials | Evolved 2 slots: Propulsion x2 300 | -9/Materials | Discovered new exit (range 16) 304 | -9/Materials | Entered Storage 305 | -9/Storage | Build established: Sprinter 319 | -9/Storage | Assisted by bots powering up and referring to "LRC-V3" 363 | -9/Storage | Lost 3 parts (1n1u1w) 493 | -9/Storage | Discovered new exit (range 3) 538 | -9/Storage | Entered Recycling 538 | -9/Recycling | Accompanied by 10 allies 539 | -9/Recycling | Met a Zionite searching for Scraptown 641 | -9/Recycling | Discovered new exit (range 14) 699 | -9/Recycling | Entered Factory 699 | -7/Factory | Accompanied by 9 allies 699 | -7/Factory | Evolved 4 slots: Propulsion x2, Utility x2 720 | -7/Factory | Build established: Commander-Sprinter 1086 | -7/Factory | Lost 3 allies 1141 | -7/Factory | Lost 3 allies 1251 | -7/Factory | Self-destructed Last Messages --------------- 01138_ Terminal dismantled. 01141_ K-01 Serf collects debris. 01145_ Dismantling Assembly Bed with Plasma Cutter. 01154_ Assembly Bed dismantled. [Achievement: Dodgeball, But With Guns] 01188_ C-30 ARC bursts open, deploying its payload. 01188_ P-60 Hacker unfolds itself. 01189_ Acquired 10 matter. 01221_ ALERT: Suspicious intruders detected, dispatching Specialist reinforcements to area. 01222_ Triggered Stasis Trap. 01222_ A bubble of rippling energy engulfs the area. 01222_ Field strength at 85. 01222_ Field strength at 70. 01223_ Field strength at 55. 01224_ Field strength at 40. 01225_ Field strength at 25. 01226_ Field strength at 10. 01227_ Stasis field depleted. 01242_ Plasma Cutter destroyed. Map ----- +----------------------------------------------------+ | ????????????# #????????????# " "" #??? | | ????????????# #????????????# """" #??? | | ????????????# #????????????# """" #??? | | ????????????# #????????????# """" #??? | | ############# #????????????# """" #??? | | # ###+##########??????# #??? | | # # #??????# #??? | | # # " #??????# #??? | | """ "" # # " " R" #??????#########??? | | "" " # # " "" "" " #?????????????????? | | " "" + # """" #?????????????????? | | # # """" #?????????????????? | | " " # ^ ^ # """" #?????????????????? | | "" "" # # """" #?????????????????? | | """ """ # # """" #?????????????????? | | # # #?????????????????? | | # # #?????????????????? | | ############# # #?????????????????? | | ????????????# ####+#########?????????????????? | | ????????????# #??# ???######?????????????????? | | ????????????# #??# ???# #?????????????????? | | ????????????# #??# #??# #?????????????????? | | ????????????# #??# #??# #?????????????????? | | ????????????# #??# #??# #?????????????????? | | ????????????# #??# #### #???? ??????????? | | ????????????# #??# @/ #?? ??????????? | | ????????????# #??# # #? ?????????? | | ############# #### ###### ????????? | | ????????? | | % ????????? | | % H ????????? | | %% ????????? | | k% k u ????????? | | ###+############ ####### ????????? | | # ## #??????? ?????????? | | # """"""" ## #????????#####??????????? | | # """"""" ## ^p #################???????? | | # """""" ## ^ ^ # #???????? | | # """"" ## # #???????? | | # ## # #???????? | | /#############/##### p# #???????? | | #??# #???# # #???????? | | #??# #???# # #???????? | | #??# #???# + #???????? | | #??# #???# # #???????? | | " " " " " #??# ##### # #???????? | | " " " " " #??# # #???????? | | " " " " " #??# ######+###################???????? | | " " " " " #### # #???????????????????? | | " " " " " + + #???????????????????? | +----------------------------------------------------+ Best States ------------- Heat Dissipation 34 Energy Generation 10 Energy Capacity 125 Matter Stores 300 Matter Capacity 300 Sight Range 16 Terrain Scan Density 10 ECM Strength 1 Evasion (%) 75 Item Schematics ----------------- Disposable Heat Sink | -9/Storage | Hacked Robot Schematics ------------------ None Fabricated ------------ Nothing Repaired ---------- Nothing Studied --------- None Alien Tech Used ----------------- None Achievements -------------- Dodgeball, But With Guns Into The Breach \\IAMDERELICT Challenges ------------ None Cogshop Purchases (14) ------------------------ Plasma Cutter (699) VTOL Module (1049) VTOL Module (1049) ECM Suite (599) Lgt. Ion Engine (599) Reaction Control System (881) Plasma Cutter (787) Cesium-ion Thruster (1287) Cesium-ion Thruster (1287) Imp. Datajack (823) Imp. Reaction Control System (1016) Cesium-ion Thruster (1483) Cesium-ion Thruster (1483) Imp. Arc Projector (Loot Box) Game ------ Seed DirtyHardlightFalx Manual? 0 Play Time 00:17:56 Cumulative 41.6 hours Start 2025.11.14 @ 05:38:17 End 2025.11.14 @ 05:54:09 Sessions 1 Manual Loads 0 Difficulty Rogue Special Mode AFD2019/Pay2Buy Game No. 83 Rogue 83 Adventurer 0 Explorer 0 Win Type - Total 0 Types 0/0/0/0/0/0/0/0/0/0 Lore% 15 Gallery% 31 Achievement% 20 Wizard Run 0 Options --------- Layout 0 ASCII 0 Keyboard 0 Movement Mouse Keybinds 0 Fullscreen 2 Font 18/SmallcapsGlow Map View 76x50 Zoom Use 0% Tactical HUD 1 Map Filters NONE Filters NONE Steam 1 RUN: e67f6623-34dc-406c-923d-5cbe4432ee64